[Event "*** Titled Tuesday Blitz"]
[Site "Chess.com"]
[Date "2019.03.05"]
[Round "7"]
[White "TBergh98"]
[Black "RiskyDecision"]
[Result "1-0"]
[WhiteElo "2383"]
[BlackElo "2430"]
[TimeControl "180+2"]
[EndTime "14:39:31 PST"]
[Termination "TBergh98 won by resignation"]

1. d4 {[%clk 0:03:01.9]} 1... Nf6 {[%clk 0:02:59.8]} 2. Bg5 {[%clk 0:03:02.5]}
2... d5 {[%clk 0:02:58.9]} 3. Bxf6 {[%clk 0:03:03.1]} 3... gxf6 {[%clk
0:02:59.2]} 4. e3 {[%clk 0:03:04.1]} 4... c5 {[%clk 0:03:00.1]} 5. Bb5+ {[%clk
0:03:05.6]} 5... Bd7 {[%clk 0:02:54]} 6. c4 {[%clk 0:03:06.6]} 6... Bxb5 {[%clk
0:02:42.4]} 7. cxb5 {[%clk 0:03:08.5]} 7... cxd4 {[%clk 0:02:34.8]} 8. Qxd4
{[%clk 0:02:57.4]} 8... e6 {[%clk 0:02:20.2]} 9. Nc3 {[%clk 0:02:58]} 9... Nd7
{[%clk 0:02:21.5]} 10. Nge2 {[%clk 0:02:52.3]} 10... Qb6 {[%clk 0:02:11.8]} 11.
Qh4 {[%clk 0:02:40.6]} 11... Rc8 {[%clk 0:01:56.5]} 12. O-O {[%clk 0:02:39.9]}
12... Rc4 {[%clk 0:01:56.6]} 13. Qh5 {[%clk 0:02:38.4]} 13... Bg7 {[%clk
0:01:51.9]} 14. Rad1 {[%clk 0:02:38]} 14... O-O {[%clk 0:01:44.9]} 15. Nd4
{[%clk 0:02:24.1]} 15... Ne5 {[%clk 0:01:37.5]} 16. f4 {[%clk 0:02:21.9]} 16...
Rxd4 {[%clk 0:01:13.4]} 17. exd4 {[%clk 0:02:17.7]} 17... Nc4 {[%clk 0:01:14.8]}
18. Rf3 {[%clk 0:02:13.2]} 18... f5 {[%clk 0:01:14.4]} 19. Rg3 {[%clk
0:02:03.2]} 19... Kh8 {[%clk 0:01:07.5]} 20. Rxg7 {[%clk 0:01:48.9]} 20... Kxg7
{[%clk 0:01:08.2]} 21. Qg5+ {[%clk 0:01:50.3]} 21... Kh8 {[%clk 0:01:07.2]} 22.
Qf6+ {[%clk 0:01:51.7]} 22... Kg8 {[%clk 0:01:08.7]} 23. Rd3 {[%clk 0:01:53.3]}
23... Rd8 {[%clk 0:00:40.7]} 24. Rg3+ {[%clk 0:01:33.4]} 24... Kf8 {[%clk
0:00:41.8]} 25. Rg7 {[%clk 0:01:32]} 25... Nd6 {[%clk 0:00:41]} 26. Rxh7 {[%clk
0:01:32]} 26... Ke8 {[%clk 0:00:42.2]} 27. a4 {[%clk 0:00:59.1]} 27... Kd7
{[%clk 0:00:40.3]} 28. h4 {[%clk 0:00:35]} 28... Kc8 {[%clk 0:00:41.4]} 29. h5
{[%clk 0:00:35.9]} 29... Ne4 {[%clk 0:00:28.4]} 30. Qg7 {[%clk 0:00:31.2]} 30...
f6 {[%clk 0:00:19.9]} 31. Ne2 {[%clk 0:00:28.9]} 31... Kb8 {[%clk 0:00:13.4]}
32. h6 {[%clk 0:00:29.7]} 32... Rc8 {[%clk 0:00:10.8]} 33. Rh8 {[%clk
0:00:30.9]} 33... Rxh8 {[%clk 0:00:10.1]} 34. Qxh8+ {[%clk 0:00:32.8]} 34... Kc7
{[%clk 0:00:11.6]} 35. Qg7+ {[%clk 0:00:34.3]} 35... Kd6 {[%clk 0:00:12.3]} 36.
h7 {[%clk 0:00:35.5]} 36... Qa5 {[%clk 0:00:13.1]} 37. Qf8+ {[%clk 0:00:32.8]}
37... Kd7 {[%clk 0:00:13.7]} 38. h8=Q {[%clk 0:00:20.8]} 38... Qe1+ {[%clk
0:00:14.1]} 39. Kh2 {[%clk 0:00:22.3]} 1-0

[Event "*** Titled Tuesday Blitz"]
[Site "Chess.com"]
[Date "2019.03.05"]
[Round "7"]
[White "STAYFlow"]
[Black "Orest_Vovk"]
[Result "1-0"]
[WhiteElo "2227"]
[BlackElo "2137"]
[TimeControl "180+2"]
[EndTime "14:39:40 PST"]
[Termination "STAYFlow won on time"]

1. d4 {[%clk 0:03:01.9]} 1... e5 {[%clk 0:02:59.6]} 2. dxe5 {[%clk 0:03:02.1]}
2... Qe7 {[%clk 0:03:00.9]} 3. Nf3 {[%clk 0:02:59.3]} 3... Nc6 {[%clk
0:02:57.7]} 4. Bf4 {[%clk 0:02:57.2]} 4... Qb4+ {[%clk 0:02:26.4]} 5. Bd2 {[%clk
0:02:56.3]} 5... Qxb2 {[%clk 0:02:27.2]} 6. Nc3 {[%clk 0:02:57.3]} 6... Bb4
{[%clk 0:02:28.2]} 7. Rb1 {[%clk 0:02:46.1]} 7... Qxc3 {[%clk 0:02:26.8]} 8.
Bxc3 {[%clk 0:02:44.1]} 8... Bxc3+ {[%clk 0:02:28.7]} 9. Nd2 {[%clk 0:02:45.4]}
9... Nxe5 {[%clk 0:02:30]} 10. e3 {[%clk 0:02:37.8]} 10... Nf6 {[%clk 0:02:30]}
11. Bd3 {[%clk 0:02:36.7]} 11... d5 {[%clk 0:02:22.3]} 12. O-O {[%clk
0:02:36.5]} 12... O-O {[%clk 0:02:22]} 13. Nf3 {[%clk 0:02:06.3]} 13... c5
{[%clk 0:02:22.5]} 14. Nxe5 {[%clk 0:02:06]} 14... Bxe5 {[%clk 0:02:24.4]} 15.
c4 {[%clk 0:02:00.9]} 15... dxc4 {[%clk 0:02:21.8]} 16. Bxc4 {[%clk 0:02:00.6]}
16... b6 {[%clk 0:02:23]} 17. Qf3 {[%clk 0:01:54.6]} 17... Bg4 {[%clk
0:02:22.8]} 18. Qc6 {[%clk 0:01:39.9]} 18... Rfc8 {[%clk 0:02:22.9]} 19. Qa4
{[%clk 0:01:33.7]} 19... Bd7 {[%clk 0:02:21.7]} 20. Qb3 {[%clk 0:01:27.1]} 20...
Be8 {[%clk 0:02:17.1]} 21. Rbd1 {[%clk 0:01:25.1]} 21... b5 {[%clk 0:02:12.8]}
22. Be2 {[%clk 0:01:13.3]} 22... c4 {[%clk 0:02:11.9]} 23. Qc2 {[%clk
0:01:09.9]} 23... a5 {[%clk 0:02:10.3]} 24. f4 {[%clk 0:01:09.9]} 24... Bc7
{[%clk 0:02:09]} 25. a4 {[%clk 0:01:05.3]} 25... Bb6 {[%clk 0:02:06.5]} 26. axb5
{[%clk 0:00:50.3]} 26... Bxe3+ {[%clk 0:02:06.4]} 27. Kh1 {[%clk 0:00:51.7]}
27... c3 {[%clk 0:02:06]} 28. Rf3 {[%clk 0:00:46.2]} 28... Ng4 {[%clk
0:02:02.2]} 29. Bd3 {[%clk 0:00:34.7]} 29... Bd4 {[%clk 0:01:56.8]} 30. Bxh7+
{[%clk 0:00:34.9]} 30... Kh8 {[%clk 0:01:57.4]} 31. Rxd4 {[%clk 0:00:26.9]}
31... Bxb5 {[%clk 0:01:55.6]} 32. Rh3 {[%clk 0:00:26.8]} 32... g6 {[%clk
0:01:51.8]} 33. Bxg6+ {[%clk 0:00:26.9]} 33... Kg8 {[%clk 0:01:52.7]} 34. Bxf7+
{[%clk 0:00:26]} 34... Kxf7 {[%clk 0:01:53.5]} 35. Qf5+ {[%clk 0:00:26.9]} 35...
Nf6 {[%clk 0:01:53.7]} 36. Rh7+ {[%clk 0:00:27.4]} 36... Ke8 {[%clk 0:01:53.7]}
37. Qe6+ {[%clk 0:00:22]} 1-0

[Event "*** Titled Tuesday Blitz"]
[Site "Chess.com"]
[Date "2019.03.05"]
[Round "7"]
[White "Denis_Palkovich"]
[Black "Maili15"]
[Result "1-0"]
[WhiteElo "2247"]
[BlackElo "2274"]
[TimeControl "180+2"]
[EndTime "14:39:48 PST"]
[Termination "Denis_Palkovich won by resignation"]

1. d4 {[%clk 0:03:01.9]} 1... d5 {[%clk 0:03:00.9]} 2. Bf4 {[%clk 0:03:01.6]}
2... Nf6 {[%clk 0:03:01.2]} 3. e3 {[%clk 0:03:02.1]} 3... c5 {[%clk 0:03:02.8]}
4. c3 {[%clk 0:03:02.2]} 4... Nc6 {[%clk 0:03:02.5]} 5. Nd2 {[%clk 0:03:03.2]}
5... Bf5 {[%clk 0:02:58.2]} 6. Qb3 {[%clk 0:03:03]} 6... Qb6 {[%clk 0:02:41.8]}
7. dxc5 {[%clk 0:03:03]} 7... Qxb3 {[%clk 0:02:42.4]} 8. axb3 {[%clk 0:03:04.5]}
8... e5 {[%clk 0:02:42.7]} 9. Bg3 {[%clk 0:03:05.6]} 9... Bxc5 {[%clk
0:02:42.8]} 10. Ngf3 {[%clk 0:03:06.9]} 10... Bd6 {[%clk 0:02:30.2]} 11. Bb5
{[%clk 0:03:07.2]} 11... Nd7 {[%clk 0:02:27.3]} 12. Nd4 {[%clk 0:03:07.6]} 12...
Nxd4 {[%clk 0:02:08.4]} 13. exd4 {[%clk 0:03:05.4]} 13... f6 {[%clk 0:02:04.9]}
14. O-O {[%clk 0:02:45.8]} 14... O-O {[%clk 0:02:03.3]} 15. Rfe1 {[%clk
0:02:32]} 15... Rfe8 {[%clk 0:02:01.7]} 16. Nf3 {[%clk 0:02:13.9]} 16... a6
{[%clk 0:01:37]} 17. Bxd7 {[%clk 0:02:02.1]} 17... Bxd7 {[%clk 0:01:38.9]} 18.
dxe5 {[%clk 0:02:03.3]} 18... fxe5 {[%clk 0:01:40.1]} 19. Bxe5 {[%clk
0:02:01.1]} 19... Bxe5 {[%clk 0:01:38.1]} 20. Rxe5 {[%clk 0:01:56.6]} 20... Rxe5
{[%clk 0:01:35.5]} 21. Nxe5 {[%clk 0:01:57.7]} 21... Bf5 {[%clk 0:01:24]} 22.
Rd1 {[%clk 0:01:48]} 22... Rd8 {[%clk 0:01:23.1]} 23. Rd2 {[%clk 0:01:45.1]}
23... Kf8 {[%clk 0:01:21.2]} 24. g4 {[%clk 0:01:41.8]} 24... Be6 {[%clk
0:01:15.9]} 25. f4 {[%clk 0:01:38.1]} 25... Ke7 {[%clk 0:01:15.3]} 26. Kf2
{[%clk 0:01:34.2]} 26... Kf6 {[%clk 0:01:07.3]} 27. Ke3 {[%clk 0:01:32]} 27...
g5 {[%clk 0:01:06.6]} 28. h3 {[%clk 0:01:27.7]} 28... d4+ {[%clk 0:00:42.2]} 29.
Rxd4 {[%clk 0:01:21]} 29... Rxd4 {[%clk 0:00:39.4]} 30. cxd4 {[%clk 0:01:04.9]}
30... gxf4+ {[%clk 0:00:35.8]} 31. Kxf4 {[%clk 0:01:04]} 31... Bxb3 {[%clk
0:00:35.6]} 32. Nd7+ {[%clk 0:01:02.5]} 32... Ke7 {[%clk 0:00:30.7]} 33. Nc5
{[%clk 0:01:04.4]} 33... Bd5 {[%clk 0:00:29.3]} 34. Ke5 {[%clk 0:01:05.8]} 34...
Bg2 {[%clk 0:00:27.1]} 35. h4 {[%clk 0:00:59.4]} 35... a5 {[%clk 0:00:18.9]} 36.
d5 {[%clk 0:00:57]} 36... b6 {[%clk 0:00:20]} 37. d6+ {[%clk 0:00:58]} 37... Kd8
{[%clk 0:00:16.8]} 38. Ne6+ {[%clk 0:00:55]} 38... Ke8 {[%clk 0:00:17]} 39. Nf4
{[%clk 0:00:50.5]} 39... Bf3 {[%clk 0:00:16.1]} 40. g5 {[%clk 0:00:41.9]} 40...
b5 {[%clk 0:00:17.1]} 41. h5 {[%clk 0:00:40.4]} 41... a4 {[%clk 0:00:14.5]} 42.
g6 {[%clk 0:00:41.4]} 42... hxg6 {[%clk 0:00:14.8]} 43. h6 {[%clk 0:00:39.2]}
43... g5 {[%clk 0:00:03]} 44. h7 {[%clk 0:00:39.1]} 1-0

[Event "*** Titled Tuesday Blitz"]
[Site "Chess.com"]
[Date "2019.03.05"]
[Round "7"]
[White "RegZryt"]
[Black "ENEASZ"]
[Result "1-0"]
[WhiteElo "2453"]
[BlackElo "2365"]
[TimeControl "180+2"]
[EndTime "14:39:55 PST"]
[Termination "RegZryt won by resignation"]

1. d4 {[%clk 0:02:59.5]} 1... d5 {[%clk 0:03:00.3]} 2. c4 {[%clk 0:03:00.5]}
2... e6 {[%clk 0:03:00.7]} 3. Nf3 {[%clk 0:03:01.4]} 3... Nf6 {[%clk 0:03:01.6]}
4. Nc3 {[%clk 0:03:02.7]} 4... a6 {[%clk 0:03:02.8]} 5. c5 {[%clk 0:03:03.3]}
5... b6 {[%clk 0:02:58.9]} 6. cxb6 {[%clk 0:03:04.2]} 6... c5 {[%clk 0:02:47.9]}
7. Qb3 {[%clk 0:03:05.3]} 7... Bb7 {[%clk 0:02:44.3]} 8. Na4 {[%clk 0:02:53.1]}
8... c4 {[%clk 0:02:39.4]} 9. Qc2 {[%clk 0:02:53.5]} 9... Nbd7 {[%clk
0:02:40.2]} 10. b3 {[%clk 0:02:52.3]} 10... Rc8 {[%clk 0:02:37.2]} 11. e3 {[%clk
0:02:50.8]} 11... Nxb6 {[%clk 0:02:25.6]} 12. Nxb6 {[%clk 0:02:49.8]} 12... Qxb6
{[%clk 0:02:27.5]} 13. bxc4 {[%clk 0:02:51.3]} 13... dxc4 {[%clk 0:02:26.4]} 14.
Rb1 {[%clk 0:02:41.5]} 14... Qa5+ {[%clk 0:01:33.9]} 15. Bd2 {[%clk 0:02:41.9]}
15... c3 {[%clk 0:01:34.4]} 16. Rxb7 {[%clk 0:02:35.7]} 16... cxd2+ {[%clk
0:01:32.7]} 17. Qxd2 {[%clk 0:02:37.6]} 17... Qd5 {[%clk 0:01:20.2]} 18. Bxa6
{[%clk 0:02:19.3]} 18... Ne4 {[%clk 0:01:17.2]} 19. Qb2 {[%clk 0:02:18.4]} 19...
Qa5+ {[%clk 0:01:15.6]} 20. Nd2 {[%clk 0:02:16.4]} 20... Qxa6 {[%clk 0:00:55.1]}
21. Nxe4 {[%clk 0:02:15.4]} 21... Ba3 {[%clk 0:00:56.7]} 22. Qb5+ {[%clk
0:02:11.9]} 22... Qxb5 {[%clk 0:00:57]} 23. Rxb5 {[%clk 0:02:13.8]} 23... Rc1+
{[%clk 0:00:49.5]} 24. Ke2 {[%clk 0:02:12.8]} 24... Rxh1 {[%clk 0:00:51.4]} 25.
Rb8+ {[%clk 0:02:13.3]} 25... Ke7 {[%clk 0:00:52.7]} 26. Rxh8 {[%clk 0:02:14.4]}
26... Rxh2 {[%clk 0:00:54.3]} 27. g3 {[%clk 0:02:13.5]} 27... h5 {[%clk
0:00:49.6]} 28. Ra8 {[%clk 0:02:08.1]} 28... Bb2 {[%clk 0:00:47.9]} 29. a4
{[%clk 0:02:08.6]} 29... Rh1 {[%clk 0:00:43.5]} 30. a5 {[%clk 0:02:09.1]} 30...
f5 {[%clk 0:00:44.4]} 31. Nc5 {[%clk 0:02:07]} 31... Ra1 {[%clk 0:00:44.6]} 32.
Ra6 {[%clk 0:02:00.3]} 32... g5 {[%clk 0:00:43.2]} 33. Rxe6+ {[%clk 0:02:00.6]}
33... Kf7 {[%clk 0:00:44.5]} 34. a6 {[%clk 0:01:58.9]} 34... Kg7 {[%clk
0:00:35.7]} 35. Kf3 {[%clk 0:01:48.4]} 35... f4 {[%clk 0:00:35.4]} 36. gxf4
{[%clk 0:01:49.1]} 36... g4+ {[%clk 0:00:36.7]} 37. Ke4 {[%clk 0:01:46.5]} 37...
h4 {[%clk 0:00:36.1]} 38. f5 {[%clk 0:01:43.8]} 38... h3 {[%clk 0:00:20.9]} 39.
Rg6+ {[%clk 0:01:42.9]} 39... Kf7 {[%clk 0:00:22.3]} 40. Rh6 {[%clk 0:01:39.4]}
40... Ba3 {[%clk 0:00:23.3]} 41. Ne6 {[%clk 0:01:36.8]} 41... Bd6 {[%clk
0:00:23.6]} 42. Nf4 {[%clk 0:01:37.1]} 42... Rxa6 {[%clk 0:00:18.4]} 43. Rh4
{[%clk 0:01:30.4]} 43... Ra1 {[%clk 0:00:16.5]} 44. Rh7+ {[%clk 0:01:27.1]}
44... Kg8 {[%clk 0:00:16.1]} 45. Rh5 {[%clk 0:01:24.9]} 45... Kf7 {[%clk
0:00:15.6]} 46. Rh7+ {[%clk 0:01:23.1]} 46... Kg8 {[%clk 0:00:16.3]} 47. Rh6
{[%clk 0:01:24.7]} 47... Bf8 {[%clk 0:00:14.4]} 48. Rh4 {[%clk 0:01:24.8]} 48...
Kf7 {[%clk 0:00:14.4]} 49. Ng6 {[%clk 0:01:25.1]} 49... Rf1 {[%clk 0:00:10.7]}
50. Ne5+ {[%clk 0:01:25.3]} 50... Kg7 {[%clk 0:00:09.7]} 51. Nxg4 {[%clk
0:01:26.3]} 51... Rh1 {[%clk 0:00:07.5]} 52. Kf3 {[%clk 0:01:23]} 52... Bd6
{[%clk 0:00:06.5]} 53. Ne5 {[%clk 0:01:20.3]} 53... Bb8 {[%clk 0:00:04]} 54. Kg3
{[%clk 0:01:19.5]} 54... Bc7 {[%clk 0:00:02.6]} 55. Rxh3 {[%clk 0:01:20.5]}
55... Rg1+ {[%clk 0:00:03.4]} 56. Kf4 {[%clk 0:01:21.1]} 56... Ra1 {[%clk
0:00:05.3]} 1-0

[Event "*** Titled Tuesday Blitz"]
[Site "Chess.com"]
[Date "2019.03.05"]
[Round "7"]
[White "r31415"]
[Black "DawidCzerw"]
[Result "0-1"]
[WhiteElo "2324"]
[BlackElo "2265"]
[TimeControl "180+2"]
[EndTime "14:40:03 PST"]
[Termination "DawidCzerw won by resignation"]

1. e4 {[%clk 0:03:01.9]} 1... c5 {[%clk 0:03:00.3]} 2. Nf3 {[%clk 0:03:03.2]}
2... g6 {[%clk 0:03:00.6]} 3. d4 {[%clk 0:03:04.5]} 3... cxd4 {[%clk 0:03:02.5]}
4. Qxd4 {[%clk 0:03:05.8]} 4... Nf6 {[%clk 0:03:03.1]} 5. e5 {[%clk 0:03:07.2]}
5... Nc6 {[%clk 0:03:04.5]} 6. Qa4 {[%clk 0:03:08.8]} 6... Nd5 {[%clk
0:03:05.7]} 7. Qe4 {[%clk 0:03:10.4]} 7... Nb6 {[%clk 0:03:07.1]} 8. Bf4 {[%clk
0:03:10]} 8... Bg7 {[%clk 0:03:08.2]} 9. Nc3 {[%clk 0:03:10.6]} 9... d5 {[%clk
0:03:09.5]} 10. exd6 {[%clk 0:03:11.7]} 10... O-O {[%clk 0:03:10.1]} 11. dxe7
{[%clk 0:03:00.9]} 11... Nxe7 {[%clk 0:02:49.5]} 12. Rd1 {[%clk 0:03:01.7]}
12... Qe8 {[%clk 0:02:44.7]} 13. Bd3 {[%clk 0:02:39.9]} 13... Bf5 {[%clk
0:02:42.4]} 14. Qe2 {[%clk 0:02:40.2]} 14... Ned5 {[%clk 0:02:28.5]} 15. Nxd5
{[%clk 0:02:32.1]} 15... Nxd5 {[%clk 0:02:30.4]} 16. Bd6 {[%clk 0:02:26.4]}
16... Qc6 {[%clk 0:02:08.6]} 17. Bxf8 {[%clk 0:01:48.5]} 17... Re8 {[%clk
0:02:08.1]} 18. Bxg7 {[%clk 0:01:48.1]} 18... Rxe2+ {[%clk 0:02:05.3]} 19. Bxe2
{[%clk 0:01:50]} 19... Kxg7 {[%clk 0:01:42.2]} 20. Nd4 {[%clk 0:01:50.8]} 20...
Qf6 {[%clk 0:01:16.5]} 21. Nxf5+ {[%clk 0:01:50.9]} 21... Qxf5 {[%clk
0:01:18.4]} 22. O-O {[%clk 0:01:51.6]} 22... Nf4 {[%clk 0:01:17.3]} 23. Bd3
{[%clk 0:01:49]} 23... Qg4 {[%clk 0:01:00.2]} 24. Be4 {[%clk 0:01:44.8]} 24...
Ne2+ {[%clk 0:00:47.2]} 25. Kh1 {[%clk 0:01:44.6]} 25... Qxe4 {[%clk 0:00:49.1]}
26. Rd2 {[%clk 0:01:38.4]} 26... Nf4 {[%clk 0:00:47.3]} 27. f3 {[%clk
0:01:37.7]} 27... Qe3 {[%clk 0:00:45.6]} 28. Rfd1 {[%clk 0:01:32.6]} 28... h5
{[%clk 0:00:44.6]} 29. h3 {[%clk 0:01:19.6]} 29... h4 {[%clk 0:00:42.6]} 30. Rd4
{[%clk 0:01:14.1]} 30... g5 {[%clk 0:00:26.7]} 31. b3 {[%clk 0:01:06.3]} 31...
Nh5 {[%clk 0:00:25.2]} 32. R4d2 {[%clk 0:01:00.8]} 32... Ng3+ {[%clk 0:00:25.1]}
33. Kh2 {[%clk 0:01:01.6]} 33... Qf4 {[%clk 0:00:25.9]} 34. Rd4 {[%clk 0:00:57]}
34... Qe5 {[%clk 0:00:16.4]} 35. Rd5 {[%clk 0:00:54.7]} 35... Qe3 {[%clk
0:00:16.7]} 36. R1d3 {[%clk 0:00:26.4]} 36... Qf2 {[%clk 0:00:16.8]} 37. Rxg5+
{[%clk 0:00:19.2]} 37... Kf6 {[%clk 0:00:16.9]} 38. Rg4 {[%clk 0:00:17.4]} 38...
Nf1+ {[%clk 0:00:16.2]} 39. Kh1 {[%clk 0:00:17.8]} 39... Ne3 {[%clk 0:00:15.4]}
40. Rg8 {[%clk 0:00:08.9]} 40... Nf5 {[%clk 0:00:16.4]} 41. c4 {[%clk
0:00:04.1]} 41... Ng3+ {[%clk 0:00:17.2]} 42. Kh2 {[%clk 0:00:05.3]} 42... Qf1
{[%clk 0:00:17.9]} 43. Rd6+ {[%clk 0:00:04.6]} 43... Ke7 {[%clk 0:00:18.3]} 44.
Rd1 {[%clk 0:00:03.1]} 44... Qxd1 {[%clk 0:00:18.1]} 0-1

[Event "*** Titled Tuesday Blitz"]
[Site "Chess.com"]
[Date "2019.03.05"]
[Round "7"]
[White "zeitnot2006"]
[Black "MatBobula"]
[Result "1-0"]
[WhiteElo "2196"]
[BlackElo "2269"]
[TimeControl "180+2"]
[EndTime "14:40:04 PST"]
[Termination "zeitnot2006 won by resignation"]

1. c4 {[%clk 0:03:01.9]} 1... e6 {[%clk 0:02:57.5]} 2. e3 {[%clk 0:02:58]} 2...
d5 {[%clk 0:02:56.2]} 3. b3 {[%clk 0:02:55.8]} 3... c5 {[%clk 0:02:52.6]} 4. Nf3
{[%clk 0:02:40.1]} 4... Nc6 {[%clk 0:02:51.4]} 5. d4 {[%clk 0:02:39.4]} 5...
cxd4 {[%clk 0:02:49.8]} 6. Nxd4 {[%clk 0:02:36.5]} 6... Nxd4 {[%clk 0:02:45.4]}
7. Qxd4 {[%clk 0:02:33.2]} 7... Nf6 {[%clk 0:02:44]} 8. cxd5 {[%clk 0:02:31]}
8... Qxd5 {[%clk 0:02:27.2]} 9. Qxd5 {[%clk 0:02:31.5]} 9... Nxd5 {[%clk
0:02:27]} 10. Bb5+ {[%clk 0:02:31.9]} 10... Bd7 {[%clk 0:02:27.1]} 11. Bxd7+
{[%clk 0:02:31]} 11... Kxd7 {[%clk 0:02:29]} 12. Bb2 {[%clk 0:02:28.8]} 12...
Bb4+ {[%clk 0:02:24.3]} 13. Ke2 {[%clk 0:02:21.6]} 13... f6 {[%clk 0:02:22.1]}
14. Nd2 {[%clk 0:02:16.7]} 14... Rac8 {[%clk 0:02:09.2]} 15. Rac1 {[%clk
0:02:15.2]} 15... e5 {[%clk 0:02:02.1]} 16. g4 {[%clk 0:02:05.1]} 16... Ke6
{[%clk 0:01:58.5]} 17. h4 {[%clk 0:01:58.6]} 17... a6 {[%clk 0:01:53.9]} 18. Ne4
{[%clk 0:01:50.1]} 18... Rhd8 {[%clk 0:01:33.4]} 19. Rhd1 {[%clk 0:01:42.8]}
19... Be7 {[%clk 0:01:25.7]} 20. Ng3 {[%clk 0:01:36.6]} 20... g6 {[%clk
0:01:20.1]} 21. Ne4 {[%clk 0:01:20.6]} 21... f5 {[%clk 0:01:02.7]} 22. gxf5+
{[%clk 0:01:20.5]} 22... gxf5 {[%clk 0:01:03.5]} 23. Ng5+ {[%clk 0:01:20.9]}
23... Bxg5 {[%clk 0:01:03.9]} 24. hxg5 {[%clk 0:01:22.8]} 24... Rxc1 {[%clk
0:00:26.2]} 25. Rxc1 {[%clk 0:01:20.8]} 25... Rg8 {[%clk 0:00:26.5]} 26. Rh1
{[%clk 0:01:18.5]} 26... Rxg5 {[%clk 0:00:15.6]} 27. Rxh7 {[%clk 0:01:15.3]}
27... Rg1 {[%clk 0:00:09.8]} 28. Rxb7 {[%clk 0:01:04.6]} 28... Rb1 {[%clk
0:00:10.5]} 29. Ba3 {[%clk 0:01:02.7]} 29... Ra1 {[%clk 0:00:10.5]} 30. Kf3
{[%clk 0:00:54]} 30... Rxa2 {[%clk 0:00:10.3]} 31. Bc5 {[%clk 0:00:51.9]} 31...
e4+ {[%clk 0:00:07.5]} 32. Kg3 {[%clk 0:00:50.9]} 32... a5 {[%clk 0:00:08.5]}
33. Ra7 {[%clk 0:00:48.3]} 33... Rc2 {[%clk 0:00:06.7]} 34. Ra6+ {[%clk
0:00:49.1]} 34... Kf7 {[%clk 0:00:04.4]} 35. Rxa5 {[%clk 0:00:46.2]} 35... Nf6
{[%clk 0:00:04.2]} 36. Bd4 {[%clk 0:00:40.6]} 36... Nh5+ {[%clk 0:00:04.5]} 37.
Kh4 {[%clk 0:00:40.2]} 37... Nf6 {[%clk 0:00:04]} 38. Rxf5 {[%clk 0:00:39.5]}
38... Kg6 {[%clk 0:00:03.8]} 39. Rxf6+ {[%clk 0:00:40.1]} 39... Kh7 {[%clk
0:00:05.1]} 40. Rf7+ {[%clk 0:00:39.7]} 40... Kg6 {[%clk 0:00:05.8]} 41. Rf6+
{[%clk 0:00:41.4]} 41... Kg7 {[%clk 0:00:06.1]} 42. Rf4+ {[%clk 0:00:43.1]}
42... Kh7 {[%clk 0:00:07.2]} 43. Rxe4 {[%clk 0:00:44.7]} 43... Rxf2 {[%clk
0:00:08.4]} 44. Rf4 {[%clk 0:00:46.2]} 44... Rc2 {[%clk 0:00:08.6]} 45. b4
{[%clk 0:00:47.5]} 45... Rc6 {[%clk 0:00:08.9]} 46. b5 {[%clk 0:00:48.7]} 46...
Rg6 {[%clk 0:00:09.5]} 47. b6 {[%clk 0:00:49.6]} 47... Rg8 {[%clk 0:00:10.4]}
48. b7 {[%clk 0:00:48.5]} 48... Kh6 {[%clk 0:00:10.7]} 49. Rf6+ {[%clk
0:00:47.4]} 49... Kh7 {[%clk 0:00:11.7]} 50. Rc6 {[%clk 0:00:47]} 50... Rb8
{[%clk 0:00:12.5]} 51. Rc7+ {[%clk 0:00:44.7]} 51... Kh6 {[%clk 0:00:13.9]} 52.
Ba7 {[%clk 0:00:44.3]} 52... Rg8 {[%clk 0:00:10.5]} 53. b8=Q {[%clk 0:00:43.4]}
1-0